Cogmind - Beta 15 @@@ ROGUE MODE // 2025.05.27 @ 21:19:39 Player: Figgis Result: Self-destructed Performance ------------- Evolutions (1) 500 Regions Visited (4) 800 Robots Destroyed (42) 210 Value Destroyed (1153) 1153 Prototype IDs (0) 0 Alien Tech Used (0) 0 Bonus (0) 0 TOTAL SCORE: 2663 Bonus ------- None Cogmind --------- Core Integrity 122/400 Matter 201/300 Energy 250/250 System Corruption 0% Temperature Cool (0) Movement Walking (260) Ox2 Location -9/Mines Parts ------- > --- POWER (1) -------- Ion Engine > --- PROPULSION (3) --- Aluminum Leg Aluminum Leg > --- UTILITY (3) ------ Improved Heat Sink High-capacity Storage Unit Hardened Light Armor Plating > --- WEAPON (2) ------- Katana > --- INVENTORY (20) --- Ion Engine Aluminum Leg Aluminum Leg Aluminum Leg Aluminum Leg Aluminum Leg Aluminum Leg Autogun Autogun Autogun Mining Laser Peak State ------------ > --- POWER ------------ Ion Engine > --- PROPULSION ------- Aluminum Leg Aluminum Leg Aluminum Leg > --- UTILITY ---------- Improved Heat Sink High-capacity Storage Unit Hardened Light Armor Plating > --- WEAPON ----------- Particle Cannon Katana > --- INVENTORY -------- Ion Engine Aluminum Leg Aluminum Leg Aluminum Leg Aluminum Leg Autogun Autogun Autogun Rocket Launcher Mining Laser [Rating: 16] Favorites ----------- Power Light Ion Engine Engine Light Ion Engine Propulsion Aluminum Leg Leg Aluminum Leg Utility Improved Heat Sink Device Improved Heat Sink Storage Small Storage Unit Protection Light Armor Plating Weapon Katana Energy Gun Particle Gun Energy Cannon Particle Cannon Ballistic Gun Assault Rifle Launcher Rocket Launcher Slashing Weapon Katana Build | -11 -10 -10 -9 -9 ------- Run | Yrd Mat Min Mat Min Slots Evolved 2 | . . . 2 . Power . | . . . . . Propulsion 1 | . . . 1 . Utility 1 | . . . 1 . Weapon . | . . . . . Parts Attached 29 | 6 . 8 12 3 Power 5 | 1 . 1 2 1 Engine 5 | 1 . 1 2 1 Core . | . . . . . Reactor . | . . . . . Propulsion 11 | 2 . 4 5 . Treads . | . . . . . Leg 11 | 2 . 4 5 . Wheel . | . . . . . Hover . | . . . . . Flight . | . . . . . Utility 5 | 1 . . 3 1 Device 1 | . . . 1 . Storage 2 | 1 . . 1 . Processor . | . . . . . Hackware . | . . . . . Protection 2 | . . . 1 1 Artifact . | . . . . . Weapon 8 | 2 . 3 2 1 Energy Gun 2 | . . 2 . . Energy Cannon 1 | . . . 1 . Ballistic Gun 3 | 2 . 1 . . Ballistic Cannon . | . . . . . Launcher 1 | . . . . 1 Special Weapon . | . . . . . Impact Weapon . | . . . . . Slashing Weapon 1 | . . . 1 . Piercing Weapon . | . . . . . Special Melee Weapon . | . . . . . Unidentified Prototypes . | . . . . . Parts Lost 16 | . . 8 3 5 Power 4 | . . 2 1 1 Propulsion 5 | . . 3 1 1 Utility 1 | . . . . 1 Weapon 6 | . . 3 1 2 Highest Loss Streak 4 | . . 4 1 2 To Critical Strikes . | . . . . . Average Backups 7 | 2 3 6 8 11 Power 1 | 1 1 1 1 1 Propulsion 3 | . . 2 3 5 Utility . | . . 1 1 . Weapon 2 | 1 1 1 2 4 Tool/Special . | . . . . . Unused Backups 8 | . . . . 8 Power 1 | . . . . 1 Propulsion 6 | . . . . 6 Utility . | . . . . . Weapon 1 | . . . . 1 Tool/Special . | . . . . . Average Slot Usage (%) 89 | . 85 77 93 93 Engine 11 | . 14 10 10 10 Leg 31 | . 28 26 32 32 Device 6 | . . . 9 11 Storage 11 | . 14 14 11 11 Protection 6 | . . . 7 11 Energy Gun 2 | . . 10 1 . Energy Cannon 5 | . . . 9 5 Ballistic Gun 6 | . 28 14 1 . Slashing Weapon 6 | . . . 7 11 Peak Build Rating 16 | 6 6 7 15 16 Average Rating 11 | 2 6 6 13 14 On Entrance 6 | . 6 6 6 15 Naked Turns . | . . . . . Heaviest Build 57 | 12 12 13 55 57 Greatest Support 30 | 20 20 20 30 30 Greatest Overweight (x) 1 | . . . 1 1 Average Overweight (x) . | . . . . 1 Largest Inventory Capacity 20 | 8 8 8 20 20 Average Capacity 13 | 5 8 8 15 20 Most Carried 12 | 5 6 8 12 12 Average Carried 8 | 3 3 6 8 11 Final Capacity 20 | 8 8 8 20 20 Final Carried 12 | 2 6 8 12 11 Class Distribution -------------------- 69% | Scavenger-Mutant 30% | Mutant Dominant Class ---------------- Mutant | -10/Materials Mutant | -10/Mines Scavenger-Mutant | -9/Materials Scavenger-Mutant | -9/Mines Resources | -11 -10 -10 -9 -9 ----------- Run | Yrd Mat Min Mat Min Matter Collected 721 | 219 173 174 135 20 Remotely . | . . . . . Salvage Created 1505 | . 258 233 831 183 Parts 90 | . 18 12 46 14 Haulers Intercepted . | . . . . . Recyclers Shooed 4 | . 1 . 3 . Parts Field Recycled . | . . . . . Retrieved Matter . | . . . . . Parts Self-Destructed . | . . . . . Prevented . | . . . . . Kills | -11 -10 -10 -9 -9 ------- Run | Yrd Mat Min Mat Min Combat Hostiles Destroyed 36 | . 6 7 16 7 Melee 17 | . . . 11 6 Guns 13 | . 6 7 . . Cannons 5 | . . . 5 . AOE 1 | . . . . 1 Classes Destroyed 9 | . 4 . 3 2 Worker 2 | . . . . 2 Recycler 2 | . 1 . 1 . Watcher 3 | . 1 . 2 . Swarmer 9 | . 3 3 . 3 Grunt 23 | . 3 4 13 3 Brawler 1 | . . . 1 . Duelist 1 | . . . 1 . Sentry 1 | . . . 1 . Assembled 1 | . . . . 1 Best Kill Streak 4 | . 4 4 3 3 Combat Bots Only 4 | . 3 4 2 3 Max Kills in Single Turn 2 | . 2 1 1 2 Gunslinging 1 | . 1 . . . Exploded 1 | . . . . 1 Melee 1 | . . . 1 1 Uniques/NPCs Destroyed . | . . . . . Combat | -11 -10 -10 -9 -9 -------- Run | Yrd Mat Min Mat Min Hostile Shots Fired 229 | . 36 63 87 43 Missed 62 | . 10 17 25 10 Hits 167 | . 26 46 62 33 Melee 4 | . . . 4 . Projectile 163 | . 26 46 58 33 AOE 4 | . . . . 4 Critical Strikes 2 | . 2 . . . Damage Taken 2149 | . 286 540 782 541 Core 422 | . 50 94 183 95 Absorbed by Shields . | . . . . . Core Remaining (%) 71 | 100 . 42 . . Volleys Fired 96 | . 23 40 24 9 Largest 2 | . 2 2 2 1 Hottest 88 | . 40 85 88 33 Shots Fired 151 | . 46 57 39 9 Gun 118 | . 46 57 15 . Cannon 24 | . . . 24 . Launcher 9 | . . . . 9 Special . | . . . . . Kinetic 102 | . 46 41 15 . Thermal 40 | . . 16 24 . Explosive 9 | . . . . 9 Electromagnetic . | . . . . . Robot Hit Streak 10 | . 7 7 10 1 Robot Miss Streak 2 | . 2 2 2 2 Penetration Max . | . . . . . Secondary Targets 1 | . 1 . . . Max Gunslinging Chain 1 | . 1 . . . Shots Hit Robots 133 | . 30 40 54 9 Core Hits 69 | . 13 14 22 20 Critical Kills . | . . . . . Critical Parts Destroyed . | . . . . . Critical Strikes 2 | . . . 1 1 Sever 2 | . . . 1 1 Melee Attacks 48 | . . . 34 14 Impact . | . . . . . Slashing 48 | . . . 34 14 Piercing . | . . . . . Sneak Attacks 5 | . . . 5 . Combat Hostiles 2 | . . . 2 . Follow-up Attacks . | . . . . . Damage Inflicted 2807 | . 389 518 1435 465 Guns 980 | . 389 518 73 . Cannons 397 | . . . 397 . Explosions 212 | . . . . 212 Melee 1218 | . . . 965 253 Ramming . | . . . . . Kinetic 817 | . 389 355 73 . Thermal 560 | . . 163 397 . Explosive 212 | . . . . 212 Electromagnetic . | . . . . . Impact . | . . . . . Slashing 1218 | . . . 965 253 Piercing . | . . . . . Highest Corruption . | . . . . . Average Corruption . | . . . . . Corruption Purged . | . . . . . Corruption Blocked . | . . . . . Overload Shots . | . . . . . Overflow Damage 34 | . . . 24 10 Projectiles . | . . . . . Explosions . | . . . . . Melee 34 | . . . 24 10 Knockbacks . | . . . . . Impact . | . . . . . Kinetic . | . . . . . Secondary . | . . . . . Self-Inflicted Damage 37 | . . . . 37 Shots 1 | . . . . 1 Rammed . | . . . . . Targets Rammed . | . . . . . Kicked . | . . . . . Crushed . | . . . . . Highest Temperature 174 | . 26 174 122 4 Average Temperature 48 | . 6 63 43 4 Received Heat Transfer 923 | . 147 228 363 185 Siege Activations . | . . . . . Martial Activations . | . . . . . Shielding Activations . | . . . . . Robots Disrupted . | . . . . . Combat Hostiles . | . . . . . Robots Corrupted . | . . . . . Combat Hostiles . | . . . . . Parts Fried . | . . . . . Impact Corruptions . | . . . . . Robots Melted . | . . . . . Combat Hostiles . | . . . . . Parts Melted 5 | . . 4 1 . Heat Transferred 1087 | . . 384 703 . Parts Sabotaged . | . . . . . Parts Stolen . | . . . . . Parts Stripped . | . . . . . Power Chain Reactions . | . . . . . Alert | -11 -10 -10 -9 -9 ------- Run | Yrd Mat Min Mat Min Maximum Alert Level 1 | . . . 1 . Low Security (%) 99 | 100 100 100 99 100 Level 1 . | . . . . . Level 2 . | . . . . . Level 3 . | . . . . . Level 4 . | . . . . . Level 5 . | . . . . . High Security . | . . . . . Max Security . | . . . . . Peak Influence 202 | . 78 60 202 92 Initial 67 | . . 26 21 67 Average 51 | . 53 17 70 45 Influence Increases 1103 | . 168 231 500 204 Destroy 0b10 Robot/C 700 | . 120 140 320 120 Destroy 0b10 Robot/NC 35 | . 10 . 15 10 Destroy Leader 146 | . 32 40 54 20 Successful Hack 18 | . 6 6 6 . Destroy Structure 39 | . . . . 39 Lose Combat Pursuer 165 | . . 45 105 15 Influence Decreases 1082 | . 100 243 381 358 Entered New Map 185 | . . 42 35 108 Time Decay 761 | . 100 125 336 200 Lost Part 136 | . . 76 10 50 Squads Dispatched 3 | . 1 . 2 . Investigation 2 | . 1 . 1 . Extermination . | . . . . . Reinforcement 1 | . . . 1 . Assault . | . . . . . Garrison . | . . . . . Intercept . | . . . . . Searches Triggered . | . . . . . Construction Impeded . | . . . . . Haulers Reinforced . | . . . . . Active Scanning Responses . | . . . . . Cargo Convoy Interrupts . | . . . . . Stealth | -11 -10 -10 -9 -9 --------- Run | Yrd Mat Min Mat Min Distress Signals 1 | . . . 1 . Communications Jammed . | . . . . . Distress Signals . | . . . . . Times Spotted 61 | . 8 10 33 10 Peak Tracking Total 5 | . 3 5 5 3 Tactical Retreats 10 | . . 3 6 1 Traps | -11 -10 -10 -9 -9 ------- Run | Yrd Mat Min Mat Min Traps Triggered 1 | . 1 . . . Indirectly . | . . . . . Trap Hack Attempts . | . . . . . Triggered . | . . . . . Disarmed . | . . . . . Reprogrammed . | . . . . . Reused . | . . . . . Traps Extracted . | . . . . . Installed . | . . . . . Triggered . | . . . . . Machines | -11 -10 -10 -9 -9 ---------- Run | Yrd Mat Min Mat Min Machines Disabled . | . . . . . Max in Single Turn . | . . . . . Machines Repaired . | . . . . . Machines Dismantled . | . . . . . Machines Sabotaged . | . . . . . Overloaded Fab Kills . | . . . . . Hacking | -11 -10 -10 -9 -9 --------- Run | Yrd Mat Min Mat Min Machines Accessed 4 | . 1 1 2 . Terminals 4 | . 1 1 2 . Fabricators . | . . . . . Repair Stations . | . . . . . Recycling Units . | . . . . . Scanalyzers . | . . . . . Garrison Access . | . . . . . Total Hacks 12 | . 2 3 7 . Successful 5 | . 1 1 3 . Failed 6 | . . 2 4 . Catastrophic 2 | . . . 2 . Database Lockouts 1 | . 1 . . . Manual 13 | . 2 4 7 . Terminals 12 | . 2 3 7 . Fabricators . | . . . . . Repair Stations . | . . . . . Recycling Units . | . . . . . Scanalyzers . | . . . . . Garrison Access . | . . . . . Terminal Hacks 3 | . 1 1 1 . Robot Analysis 3 | . 1 1 1 . Fabricator Hacks . | . . . . . Repair Station Hacks . | . . . . . Recycling Unit Hacks . | . . . . . Scanalyzer . | . . . . . Garrison Access Hacks . | . . . . . Unauthorized Hacks 2 | . . . 2 . Terminals 2 | . . . 2 . Botnet 2 | . . . 2 . Fabricators . | . . . . . Repair Stations . | . . . . . Recycling Units . | . . . . . Scanalyzers . | . . . . . Garrison Access . | . . . . . Data Cores Recovered . | . . . . . Used . | . . . . . Hacking Detections 3 | . . 1 2 . Full Trace Events 2 | . . 1 1 . Feedback Events . | . . . . . Feedback Blocked . | . . . . . Robot Schematics Acquired . | . . . . . Robots Built . | . . . . . Authchips . | . . . . . Time . | . . . . . Total Robot Build Rating . | . . . . . Part Schematics Acquired . | . . . . . Parts Built . | . . . . . Authchips . | . . . . . Time . | . . . . . Total Part Build Rating . | . . . . . Parts Repaired . | . . . . . Time . | . . . . . Parts Recycled . | . . . . . Recycled Matter . | . . . . . Retrieved Matter . | . . . . . Retrieved Components . | . . . . . Parts Scanalyzed . | . . . . . Part Schematics Acquired . | . . . . . Parts Damaged . | . . . . . Bothacking | -11 -10 -10 -9 -9 ------------ Run | Yrd Mat Min Mat Min Used RIF Installer . | . . . . . Robots Hacked . | . . . . . Non-combat . | . . . . . Combat . | . . . . . Robot Hacks Applied . | . . . . . Relay Couplers Released . | . . . . . Fabnet Peak Effective % . | . . . . . Robots Rewired . | . . . . . Allies Hacked . | . . . . . Hacks Repelled . | . . . . . Allies | -11 -10 -10 -9 -9 -------- Run | Yrd Mat Min Mat Min Total Allies . | . . . . . Largest Group . | . . . . . Highest-Rated Group . | . . . . . Highest-Rated Ally . | . . . . . Total Orders . | . . . . . Ally Attacks . | . . . . . Total Damage . | . . . . . Kills . | . . . . . Allies Corrupted . | . . . . . Allies Melted . | . . . . . Intel | -11 -10 -10 -9 -9 ------- Run | Yrd Mat Min Mat Min Active Infowar (turns) . | . . . . . Robot Analysis Total 3 | . 1 1 1 . Derelict Logs Recovered 1 | . . . . 1 Drone Launches . | . . . . . Drone Recoveries . | . . . . . Exploration | -11 -10 -10 -9 -9 ------------- Run | Yrd Mat Min Mat Min Turns Passed 2069 | 34 224 394 981 436 Spaces Moved 1039 | 36 115 206 484 198 Core 32 | 32 . . . . Treads . | . . . . . Legs 1007 | 4 115 206 484 198 Wheels . | . . . . . Hover . | . . . . . Flight . | . . . . . Fastest Speed 50 | 50 120 120 120 190 Average Speed 146 | 57 120 120 152 190 Slowest Speed 190 | 120 120 120 190 190 Overloaded Moves . | . . . . . Propulsion Burnouts . | . . . . . Robots Hopped . | . . . . . Potential Cave-ins . | . . . . . Cave-ins Triggered . | . . . . . Exploration Rate (%) 31 | 3 31 45 36 42 Regions Visited 4 Branch Regions 2 Pre-discovered Areas . | . . . . . Known Exits Taken . | . . . . . Unknown Exits Taken 4 | 1 1 1 1 . Scrap Searched 2 | . . 1 . 1 Spaces Dug 19 | . . . . 19 Terrain Destroyed 78 | . . . . 78 Melee . | . . . . . Projectile . | . . . . . AOE 78 | . . . . 78 Terrain Rammed . | . . . . . Walls Destroyed . | . . . . . Machines Disabled . | . . . . . Actions | -11 -10 -10 -9 -9 --------- Run | Yrd Mat Min Mat Min Total 1368 | 49 155 295 642 227 Wait 115 | . 14 33 67 1 Move 1035 | 35 114 205 483 198 Hop . | . . . . . Pick Up 38 | 8 4 9 15 2 Fast Attach 1 | . . . 1 . Attach 22 | 6 . 7 6 3 Detach . | . . . . . Swap 7 | . . 1 6 . Drop 6 | . . . 6 . Fire 96 | . 23 40 24 9 Melee 48 | . . . 34 14 Ram . | . . . . . Kick . | . . . . . Crush . | . . . . . Escape Stasis . | . . . . . Rewire . | . . . . . Trap . | . . . . . Miscellaneous . | . . . . . Route ------- -11/Scrapyard -10/Materials (discovered 2 exits: *Mat / *Min) -10/Mines -9/Materials (discovered 2 exits: [*Mat] / [*Min]) -9/Mines (discovered 1 exit: [*Mat]) History --------- Turn | Location | Event 13 | -11/Scrapyard | Discovered new exit (range 16) 35 | -11/Scrapyard | Entered Materials 122 | -10/Materials | Discovered new exit (range 10) 148 | -10/Materials | Discovered new exit (range 16) 248 | -10/Materials | Central database locked down 259 | -10/Materials | Entered Mines 279 | -10/Mines | Met a Derelict bent on vengeance 318 | -10/Mines | Build established: Mutant 351 | -10/Mines | Lost 4 parts (1p2n1w) 444 | -10/Mines | Core integrity fell below 50% 621 | -10/Mines | Discovered new exit (range 9) 634 | -10/Mines | Lost 4 parts (1p1n2w) 653 | -10/Mines | Entered Materials 653 | -9/Materials | Evolved 2 slots: Propulsion x1, Utility x1 958 | -9/Materials | Build established: Scavenger-Mutant 1040 | -9/Materials | Discovered new exit (range 16) 1297 | -9/Materials | Discovered new exit (range 6) 1634 | -9/Materials | Entered Mines 1636 | -9/Mines | Learned location of 1 exit from Proximity Caves 1715 | -9/Mines | Core integrity fell below 50% 1857 | -9/Mines | Discovered new exit (range 3) 1998 | -9/Mines | Assembled infested the area 2003 | -9/Mines | Assisted by a Guerilla fighting off Assembled 2070 | -9/Mines | Self-destructed Last Messages --------------- 01998_ ALERT: Infestation in the mines, dispatching Demolisher response squad. 02003_ A derelict emerges from the shadows: "You need to get out of here! I've been tracking a group of Assembled to figure out where they're coming from, and they're closing on this area, come on!" 02018_ K-01 Serf destroyed. 02028_ T-07 Excavator destroyed. 02033_ L5-768(h): "I'll hold them off! Go on ahead or try to find another way!" 02037_ K-01 Serf collects debris. 02043_ The unstable cave ceiling collapses. 02045_ K-01 Serf collects debris. 02046_ as-21401 destroyed. 02048_ K-01 Serf collects debris. 02057_ The unstable cave ceiling collapses. 02059_ K-01 Serf collects debris. 02062_ K-01 Serf destroyed. 02063_ The unstable cave ceiling collapses. 02066_ Aluminum Leg destroyed. 02068_ Rocket Launcher destroyed. Map ----- +----------------------------------------------------+ | ????????????????????????????????????????# #?? | | ????????????????????????????????????????# ### | | ????????????????????????????????????????# | | ????????????????????????????????????????# ### | | ????????????????????????????????????????# < #?? | | ????????????????????????????????????????# #?? | | ????????????????????????????????????????########?? | | ????????????? ??????????????????????????????????? | | ????????????? #?????????????????????????????????? | | ????????????# #?????????????????????????????????? | | ????????????# #?##????#?????????????????????????? | | ????????????# ? #??? #?????????????????????????? | | ????????????# #? #?? ##????????????????????????? | | ????????????# #? #?# #????????????????????????? | | ???????????## ## ## #????????????????????????? | | ???????????# ??????????????????????????? | | ???????????# ???????###????????????????## | | ???????????# #???????## ##???????????????# | | ???????????# =% #???????## #??? ?????????# | | ?????????### ! #???????# #?# ?????????## | | ????????## #???###### # ####??????# | | ????????# #???## # # #####??? | | ????????# #??## ##?? | | ????????# """ ##?# d = ##? | | ????????## """ ### d ## | | ????????## """ @ ### % | | ????????# """ #??????## % | | ???????# # = # #???????###%## | | ??????# # ##???????????# #? | | ??? ## ## # #????????????# ## | | ??## #?####?# ####?#?????######## ## | | ????####???????# # #????# | | ???????????????## # #??????????########### | | ????????????????## # # ##????????????????????# | | ?????????????????####### ##?????????????????????# | | ???????????????????????####??????????????????????# | | ?????????????????????????????????????????????????# | | ?????????????????????????????????????????????????# | | ?????????????????????????????????????????????????# | | ?????????????????????????????????????????????????# | | ?????????????????????????????????????????????????# | | ?????????????????????????????????????????????????# | | ?????????????????????????????????????????????????# | | ?????????????????????????????????????????????????# | | ?????????????????????????????????????????????????# | | ?????????????????????????????????????????????????? | | ?????????????????????????????????????????????????? | | ?????????????????????????????????????????????????? | | ?????????????????????????????????????????????????? | | ?????????????????????????????????????????????????? | +----------------------------------------------------+ Best States ------------- Heat Dissipation 42 Energy Generation 10 Energy Capacity 250 Matter Stores 300 Matter Capacity 300 Sight Range 16 Terrain Scan Density 10 Armor Coverage 150 Evasion (%) 55 Item Schematics ----------------- None Robot Schematics ------------------ None Fabricated ------------ Nothing Repaired ---------- Nothing Alien Tech Used ----------------- None Achievements -------------- None Challenges ------------ None Game ------ Seed SwarmDirtyRailgun Manual? 0 Play Time 00:16:32 Cumulative 157.3 hours Start 2025.05.27 @ 21:04:29 End 2025.05.27 @ 21:19:39 Sessions 1 Manual Loads 0 Difficulty Rogue Special Mode None Game No. 232 Rogue 229 Adventurer 3 Explorer 0 Win Type - Total 1 Types 1/0/0/0/0/0/0/0/0/0 Lore% 47 Gallery% 55 Achievement% 45 Wizard Run 0 Options --------- Layout 0 ASCII 0 Keyboard 0 Movement Mouse Keybinds 0 Fullscreen 2 Font 18/SmallcapsGlow Map View 76x50 Zoom Use 0% Tactical HUD 1 Map Filters NONE Filters NONE Steam 1 RUN: f8d3d480-4248-467b-b3ef-2df6317acce2